bitfinex/quotes_SOLUSD_20230103
["timestamp","ask_amount","ask_price","bid_price","bid_amount"]
[1672725526512,31.0113,11.79,11.779,30.0]
[1672725526743,7.33,11.79,11.779,30.0]
[1672725527679,23.1331,11.791,11.779,30.0]
[1672725528731,312.0,11.792,11.78,63.75]
[1672725528942,312.0,11.792,11.781,73.8112]
[1672725529154,48.0867,11.795,11.782,63.74]
[1672725529363,48.0867,11.795,11.783,30.0]
[1672725529580,48.0867,11.795,11.784,87.5412]
[1672725529895,78.0867,11.795,11.784,23.8112]
[1672725530110,53.1331,11.795,11.785,30.0]
[1672725530306,23.1331,11.795,11.785,30.0]
[1672725531374,23.1331,11.795,11.786,76.51723102]
[1672725531572,23.1331,11.795,11.787,30.0]
[1672725531778,23.2777,11.798,11.787,42.79723102]
[1672725531984,63.61,11.806,11.789,30.0]
[1672725532207,63.6,11.807,11.79,91.09]
[1672725532630,30.0,11.806,11.791,30.0]
[1672725532834,30.0,11.806,11.793,30.0]
[1672725533043,30.0,11.806,11.792,63.69]
[1672725533368,63.62,11.805,11.792,63.69]
[1672725533559,7.39,11.8,11.788,63.71]
[1672725533773,7.39,11.8,11.789,30.0]
[1672725533977,37.39,11.8,11.789,30.0]
[1672725534739,7.39,11.8,11.789,30.0]
[1672725535143,30.0,11.799,11.789,30.0]
[1672725535371,30.0,11.799,11.787,172.5054]
[1672725535559,107.41163349,11.798,11.787,132.0364]
[1672725535999,30.0,11.796,11.788,30.0]
[1672725536188,342.0,11.796,11.787,132.0364]
[1672725536529,459.41317249,11.796,11.787,132.0364]
[1672725536833,513.07163349,11.796,11.787,23.241]
[1672725537030,449.41163349,11.796,11.787,23.241]
[1672725537659,63.67,11.795,11.787,23.241]
[1672725538088,61.03317249,11.795,11.787,23.241]
[1672725538300,30.0,11.794,11.787,23.241]
[1672725538509,61.03317249,11.795,11.787,30.0]
[1672725538715,313.0,11.796,11.787,30.0]
[1672725539247,313.0,11.796,11.786,164.9695]
[1672725539667,313.0,11.796,11.787,30.0]
[1672725539882,313.0,11.796,11.787,93.71]
[1672725540076,313.0,11.796,11.787,30.0]
[1672725540286,1.0,11.796,11.787,30.0]
[1672725540502,1.0,11.796,11.787,78.2378]
[1672725540934,1.0,11.796,11.787,91.03503102]
[1672725541149,1.0,11.796,11.789,30.0]
[1672725541343,1.0,11.796,11.79,7.39]
[1672725541694,8.2811212,11.801,11.791,83.69]
[1672725541880,8.2811212,11.801,11.792,30.0]
[1672725542210,8.2811212,11.801,11.794,30.0]
[1672725542518,41.326099,11.81,11.796,30.0]
[1672725542519,33.976099,11.81,11.796,30.0]
[1672725542731,33.976099,11.81,11.8,7.39]
[1672725543045,30.0,11.815,11.801,63.64]
[1672725543240,30.0,11.815,11.801,83.64]
[1672725543450,30.0,11.815,11.801,96.43723102]
[1672725543662,375.56,11.816,11.801,96.43723102]
[1672725543873,30.0,11.815,11.801,96.43723102]
[1672725544092,30.0,11.815,11.801,83.64]
[1672725544304,30.0,11.814,11.801,83.64]
[1672725544516,30.0,11.815,11.802,42.79723102]
[1672725544720,30.0,11.815,11.803,63.63]
[1672725545026,30.0,11.815,11.804,30.0]
[1672725545241,0.45207576,11.817,11.804,30.0]
[1672725545558,30.45207576,11.817,11.806,30.0]
[1672725545774,0.45207576,11.817,11.808,30.0]
[1672725546091,0.0025076,11.809,11.808,30.0]
[1672725546304,0.0025076,11.809,11.808,42.79723102]
[1672725546915,0.0025076,11.809,11.804,63.62]
[1672725547128,0.0025076,11.809,11.804,181.7479]
[1672725547343,0.0025076,11.809,11.804,118.1279]
[1672725548294,0.0025076,11.809,11.797,63.66]
[1672725548704,30.0025076,11.809,11.795,63.67]
[1672725548922,76.39723102,11.808,11.794,114.8773]
[1672725549120,30.0,11.807,11.794,114.8773]
[1672725549331,30.0,11.805,11.794,114.8773]
[1672725549551,30.0,11.805,11.789,1105.18875273]
[1672725549552,63.62,11.804,11.789,1105.18875273]
[1672725549864,7.39,11.8,11.789,1105.18875273]
[1672725550069,63.65,11.799,11.781,251.0408]
[1672725550603,63.65,11.799,11.782,30.0]
[1672725550817,7.39,11.8,11.783,63.73]
[1672725551023,30.0,11.798,11.784,30.0]
[1672725551243,30.0,11.798,11.785,63.72]
[1672725551451,81.47220116,11.798,11.786,30.0]
[1672725551865,81.47220116,11.798,11.785,63.72]
[1672725552086,63.66,11.797,11.784,30.0]
[1672725552286,63.66,11.797,11.783,93.73]
[1672725552611,30.0,11.796,11.783,93.73]
[1672725553353,81.47220116,11.798,11.783,93.73]
[1672725553545,93.65,11.799,11.783,93.73]
[1672725553883,63.65,11.799,11.783,106.52723102]
[1672725554084,7.39,11.8,11.783,106.52723102]
[1672725554278,63.63,11.802,11.783,93.73]
[1672725554489,30.0,11.799,11.783,93.73]
[1672725555556,30.0,11.799,11.783,63.73]
[1672725555969,30.0,11.797,11.783,63.73]
[1672725556185,63.66,11.796,11.783,63.73]
[1672725556404,30.0,11.795,11.783,63.73]
[1672725556913,63.66,11.796,11.783,63.73]
[1672725557246,7.34,11.79,11.774,93.78]
[1672725557771,69.23222101,11.789,11.774,93.78]
[1672725558505,30.0,11.788,11.774,93.78]
[1672725558693,30.0,11.788,11.774,106.57723102]
[1672725559125,95.80802101,11.788,11.774,63.78]
[1672725559349,30.0,11.786,11.774,63.78]
[1672725560171,30.0,11.793,11.775,30.0]
[1672725560406,30.0,11.793,11.776,63.77]
[1672725560591,30.0,11.793,11.777,30.0]
[1672725560913,93.68,11.793,11.779,30.0]
[1672725561753,93.68,11.793,11.778,63.76]
[1672725562156,7.39,11.79,11.775,93.78]
[1672725562370,30.0,11.788,11.775,93.78]
[1672725563433,30.0,11.788,11.775,63.78]
[1672725564289,88.83944901,11.788,11.775,63.78]
[1672725564905,30.0,11.786,11.773,108.1299]
[1672725565127,53.86559416,11.787,11.773,171.9199]
[1672725565328,58.83944901,11.788,11.773,171.9199]
[1672725565329,30.0,11.792,11.776,12.79723102]
[1672725565540,139.2303,11.792,11.777,93.77]
[1672725565753,30.0,11.792,11.777,93.77]
[1672725565962,93.68,11.793,11.777,93.77]
[1672725566367,30.0,11.793,11.777,93.77]
[1672725566580,22.9599,11.795,11.78,5.9]
[1672725566800,22.9599,11.795,11.781,83.75]
[1672725567127,22.9599,11.795,11.782,30.0]
[1672725567318,22.9599,11.795,11.784,30.0]
[1672725567529,24.7019,11.799,11.785,63.72]
[1672725567741,5.94,11.8,11.786,30.0]
[1672725568058,5.94,11.8,11.788,30.0]
[1672725568586,35.94,11.8,11.787,63.71]
[1672725569000,35.94,11.8,11.788,30.0]
[1672725570067,35.94,11.8,11.787,63.71]
[1672725570271,30.0,11.798,11.786,30.0]
[1672725570696,30.0,11.798,11.785,63.72]
[1672725570908,30.0,11.798,11.786,30.0]
[1672725571125,30.0,11.796,11.786,30.0]
[1672725571315,30.0,11.796,11.784,93.73]
[1672725571527,30.0,11.796,11.784,63.73]
[1672725571731,30.0,11.794,11.783,114.6839]
[1672725572058,30.0,11.794,11.783,30.0]
[1672725572676,63.67,11.795,11.783,30.0]
[1672725572906,30.0,11.794,11.783,30.0]
[1672725573305,63.67,11.795,11.783,30.0]
[1672725573515,63.66,11.796,11.783,30.0]
[1672725573948,30.0,11.796,11.783,30.0]
[1672725575847,30.0,11.794,11.783,30.0]
[1672725576063,30.0,11.794,11.783,93.73]
[1672725576258,30.0,11.794,11.782,136.4444]
[1672725576472,30.0,11.794,11.782,72.7044]
[1672725577312,29.0,11.794,11.782,72.7044]
[1672725577522,86.55010901,11.794,11.782,72.7044]
[1672725578146,86.55010901,11.794,11.783,30.0]
[1672725578983,57.55010901,11.794,11.783,30.0]
[1672725579194,56.30448083,11.794,11.784,63.73]
[1672725579408,11.9,11.8,11.785,30.0]
[1672725579409,30.0,11.8,11.785,30.0]
[1672725579619,30.0,11.8,11.787,30.0]
[1672725581842,30.0,11.798,11.786,63.72]
[1672725582047,341.0,11.798,11.787,30.0]
[1672725583629,30.0,11.801,11.788,63.71]
[1672725583839,24.2581,11.802,11.789,30.0]
[1672725584148,93.63,11.803,11.789,30.0]
[1672725585079,93.63,11.803,11.788,63.71]
[1672725585524,93.63,11.803,11.789,30.0]
[1672725586570,405.63,11.803,11.789,30.0]
[1672725586772,342.0,11.803,11.789,30.0]
[1672725587918,30.0,11.801,11.789,30.0]
[1672725588437,30.0,11.801,11.788,63.71]
[1672725588653,30.0,11.801,11.77,47.57563475]
[1672725588654,113.16,11.8,11.77,47.57563475]
[1672725588881,113.16,11.8,11.774,69.7409]
[1672725588882,263.67223439,11.8,11.774,69.7409]
[1672725589095,65.2122851,11.799,11.776,74.42286577]
[1672725589400,30.0,11.798,11.778,41.62563475]
[1672725589616,80.47718741,11.798,11.779,262.917]
[1672725589800,63.66,11.797,11.78,30.0]
[1672725590010,127.36775176,11.797,11.781,193.1661]
[1672725590230,30.0,11.795,11.782,30.0]
[1672725590651,30.0,11.795,11.783,63.73]
[1672725591075,30.0,11.795,11.782,93.74]
[1672725594238,63.67,11.794,11.781,109.4161]
[1672725594428,5.85,11.79,11.776,116.9588]
[1672725594644,63.7,11.789,11.776,116.9588]
[1672725594850,50.89280694,11.79,11.78,5.9]
[1672725595177,312.0,11.794,11.782,30.0]
[1672725595501,30.0,11.805,11.783,63.73]
[1672725595502,30.0,11.793,11.783,63.73]
[1672725595691,109.68812074,11.799,11.784,30.0]
[1672725595900,30.0,11.798,11.784,140.0731]
[1672725596223,76.03812074,11.798,11.784,140.0731]
[1672725596544,30.0,11.796,11.784,140.0731]
[1672725596953,30.0,11.796,11.786,30.0]
[1672725597586,30.0,11.796,11.785,63.72]
[1672725597792,29.39,11.8,11.784,203.8031]
[1672725598022,5.85,11.8,11.784,203.8031]
[1672725598544,312.0,11.796,11.784,203.8031]
[1672725600106,45.73998741,11.8,11.786,30.0]
[1672725600321,45.73998741,11.8,11.787,83.71]
[1672725600746,45.73998741,11.8,11.788,30.0]
[1672725600957,5.85,11.8,11.789,83.7]
[1672725601715,5.85,11.8,11.79,30.0]
[1672725601917,24.6059,11.808,11.792,30.0]
[1672725602104,30.0025076,11.809,11.793,63.68]
[1672725602320,30.0025076,11.809,11.794,113.35]
[1672725602321,47.99592074,11.807,11.794,113.35]
[1672725602647,0.0025076,11.809,11.795,63.67]
[1672725602849,0.0025076,11.809,11.796,30.0]
[1672725603063,312.0025076,11.809,11.797,63.66]
[1672725603255,30.0,11.808,11.797,63.66]
[1672725603791,47.99592074,11.807,11.798,30.0]
[1672725604004,47.99592074,11.807,11.799,63.65]
[1672725604221,30.0,11.806,11.797,93.66]
[1672725604534,312.0025076,11.809,11.797,93.66]
[1672725604942,0.0025076,11.809,11.798,30.0]
[1672725605270,0.0025076,11.809,11.8,30.0]
[1672725606937,0.0025076,11.809,11.801,63.64]
[1672725607150,0.0025076,11.809,11.802,20.0]
[1672725607368,0.0025076,11.809,11.803,63.63]
[1672725607589,180.2461,11.829,11.803,63.63]
[1672725607590,87.40029098,11.815,11.804,20.0]
[1672725607896,345.944201,11.823,11.805,93.62]
[1672725608095,30.0,11.822,11.807,30.0]
[1672725608309,345.944201,11.823,11.808,63.6]
[1672725608718,5.88,11.82,11.808,63.6]
[1672725608928,5.88,11.82,11.805,63.62]
[1672725609138,5.88,11.82,11.806,30.0]
[1672725609363,40.97938741,11.818,11.807,63.6]
[1672725609579,40.97938741,11.816,11.805,63.62]
[1672725609787,40.97938741,11.816,11.804,137.5784]
[1672725610188,30.0,11.815,11.804,137.5784]
[1672725610406,48.34262512,11.815,11.804,137.5784]
[1672725610625,46.25440901,11.816,11.805,30.0]
[1672725610818,30.0,11.819,11.806,63.61]
[1672725611239,48.34262512,11.816,11.806,63.61]
[1672725611672,87.6614792,11.816,11.806,63.61]
[1672725611892,312.0,11.815,11.806,63.61]
[1672725612207,75.55885408,11.814,11.805,63.62]
[1672725612400,177.26255487,11.814,11.804,73.9584]
[1672725612605,30.0,11.812,11.805,63.62]
[1672725612837,55.44929178,11.813,11.805,63.62]
[1672725613043,0.45207576,11.817,11.806,30.0]
[1672725613364,0.45207576,11.817,11.807,83.6]
[1672725613677,0.45207576,11.817,11.808,30.0]
[1672725613881,0.45207576,11.817,11.809,83.59]
[1672725614094,0.45207576,11.817,11.81,30.0]
[1672725614403,0.45207576,11.817,11.811,63.58]
[1672725616603,0.45207576,11.817,11.81,63.59]
[1672725616833,0.45207576,11.817,11.811,20.0]
[1672725617143,0.45207576,11.817,11.812,63.58]
[1672725617355,0.45207576,11.817,11.811,20.0]
[1672725617548,0.45207576,11.817,11.812,63.58]
[1672725618080,0.45207576,11.817,11.808,48.2851]
[1672725618925,30.0,11.815,11.808,48.2851]
[1672725619115,30.0,11.815,11.807,23.0904]
[1672725619535,45.55885408,11.814,11.807,23.0904]
[1672725619746,63.57,11.813,11.798,63.65]
[1672725620066,5.9,11.81,11.797,30.0]
[1672725620382,64.2560851,11.81,11.796,63.66]
[1672725620582,123.95301411,11.81,11.795,63.67]
[1672725620796,30.0,11.808,11.796,30.0]
[1672725621228,59.69692901,11.807,11.796,30.0]
[1672725621656,30.0,11.806,11.795,63.67]
[1672725621851,63.62,11.805,11.788,63.71]
[1672725622056,63.62,11.805,11.785,63.72]
[1672725622057,5.9,11.8,11.785,63.72]
[1672725622289,5.9,11.8,11.786,30.0]
[1672725622494,59.69692901,11.799,11.787,63.71]
[1672725622904,30.0,11.798,11.787,63.71]
[1672725623327,89.69692901,11.798,11.787,63.71]
[1672725623542,133.93584975,11.798,11.787,63.71]
[1672725623747,133.93584975,11.798,11.786,63.72]
[1672725623949,133.93584975,11.798,11.78,63.75]
[1672725623950,30.0,11.796,11.78,63.75]
[1672725624159,5.9,11.79,11.774,145.46731626]
[1672725624376,5.9,11.79,11.776,30.0]
[1672725624581,163.48847887,11.789,11.772,181.768]
[1672725624818,30.0,11.788,11.773,30.0]
[1672725625010,193.48847887,11.788,11.774,63.78]
[1672725625219,163.48847887,11.787,11.775,30.0]
[1672725625436,163.48847887,11.787,11.774,63.78]
[1672725625646,193.48847887,11.786,11.775,30.0]
[1672725625863,114.04955813,11.786,11.775,30.0]
[1672725626053,59.50942568,11.786,11.776,63.77]
[1672725626271,59.50942568,11.786,11.777,30.0]
[1672725626588,29.48,11.79,11.777,30.0]
[1672725626804,5.94,11.79,11.777,30.0]
[1672725627952,5.94,11.79,11.779,30.0]
[1672725628468,49.43892074,11.791,11.779,30.0]
[1672725628682,30.0,11.794,11.781,30.0]
[1672725628910,30.0,11.794,11.782,63.74]
[1672725629101,30.0,11.796,11.783,30.0]
[1672725629320,30.0,11.796,11.784,63.73]
[1672725629533,30.0,11.796,11.785,30.0]
[1672725630170,30.0,11.797,11.785,30.0]
[1672725630388,29.54,11.8,11.786,63.72]
[1672725630698,35.94,11.8,11.787,30.0]
[1672725630892,35.94,11.8,11.788,63.71]
[1672725631105,5.94,11.8,11.787,30.0]
[1672725631951,312.0,11.797,11.787,30.0]
[1672725632159,312.0,11.797,11.788,63.71]
[1672725632377,312.0,11.797,11.789,30.0]
[1672725633001,312.0,11.797,11.788,63.71]
[1672725633949,312.0,11.797,11.786,63.72]
[1672725634283,312.0,11.797,11.787,30.0]
[1672725635105,312.0,11.797,11.786,63.72]
[1672725635313,30.0,11.796,11.784,63.73]
[1672725636922,30.0,11.794,11.784,63.73]
[1672725637137,30.0,11.794,11.782,172.3562]
[1672725637337,49.23352074,11.793,11.782,172.3562]
[1672725637877,5.85,11.79,11.776,30.0]
[1672725638394,60.30762568,11.79,11.776,30.0]
[1672725638611,30.0,11.789,11.778,63.76]
[1672725639000,84.89095901,11.789,11.777,93.77]
[1672725639447,5.85,11.79,11.777,93.77]
[1672725640059,78.52372074,11.789,11.777,30.0]
[1672725640490,30.0,11.787,11.776,63.77]
[1672725640895,103.41467975,11.786,11.776,63.77]
[1672725641224,30.0,11.785,11.773,63.79]
[1672725641432,30.0,11.785,11.774,30.0]
[1672725641433,78.52372074,11.785,11.774,30.0]
[1672725641636,48.52372074,11.784,11.773,63.79]
[1672725641854,84.89095901,11.785,11.774,30.0]
[1672725642597,128.23287975,11.785,11.774,30.0]
[1672725642808,180.19814553,11.785,11.774,30.0]
[1672725643209,180.19814553,11.785,11.774,93.78]
[1672725643624,180.19814553,11.785,11.774,63.78]
[1672725643858,180.19814553,11.785,11.773,93.79]
[1672725644490,180.19814553,11.785,11.773,63.79]
[1672725644702,5.9,11.78,11.773,63.79]
[1672725644905,5.9,11.78,11.77,63.8]
[1672725645118,111.15921309,11.779,11.771,20.0]
[1672725645546,49.68158741,11.778,11.771,83.8]
[1672725646058,49.68158741,11.778,11.772,30.0]
[1672725646269,111.15921309,11.778,11.772,30.0]
[1672725646585,61.47762568,11.778,11.772,30.0]
[1672725646905,60.45859912,11.779,11.772,30.0]
[1672725647311,5.9,11.78,11.773,63.79]
[1672725647529,113.6508,11.788,11.773,63.79]
[1672725647738,76.1869,11.79,11.774,30.0]
[1672725647937,29.4875,11.79,11.775,63.78]
[1672725648160,44.15658741,11.789,11.776,30.0]
[1672725648368,30.0,11.788,11.778,30.0]
[1672725648568,342.0,11.788,11.778,30.0]
[1672725648904,386.15658741,11.788,11.777,63.77]
[1672725649303,342.0,11.788,11.777,63.77]
[1672725649724,342.0,11.788,11.778,30.0]
[1672725650267,342.0,11.788,11.777,63.77]
[1672725650589,30.0,11.786,11.774,93.78]
[1672725651742,126.52051986,11.787,11.774,93.78]
[1672725652144,5.9,11.78,11.769,63.81]
[1672725652367,5.9,11.78,11.767,63.82]
[1672725652582,5.9,11.78,11.768,30.0]
[1672725655005,80.05658741,11.78,11.768,30.0]
[1672725655316,80.05658741,11.78,11.767,63.82]
[1672725655502,80.05658741,11.78,11.768,30.0]
[1672725655925,50.05658741,11.78,11.768,30.0]
[1672725656147,5.9,11.78,11.768,30.0]
[1672725656563,317.9,11.78,11.769,63.81]
[1672725656789,44.15658741,11.779,11.768,30.0]
[1672725656981,317.9,11.78,11.768,30.0]
[1672725657518,362.05658741,11.78,11.77,30.0]
[1672725657736,356.15658741,11.78,11.772,30.0]
[1672725658063,356.15658741,11.78,11.773,63.79]
[1672725658664,356.15658741,11.78,11.77,30.0]
[1672725658876,356.15658741,11.78,11.771,20.0]
[1672725659723,312.0,11.78,11.771,20.0]
[1672725660148,312.0,11.78,11.771,83.8]
[1672725660572,312.0,11.78,11.771,20.0]
[1672725660763,312.0,11.78,11.769,63.81]
[1672725660990,30.0,11.779,11.769,30.0]
[1672725661189,312.0,11.78,11.769,30.0]
[1672725661391,312.0,11.78,11.771,30.0]
[1672725661623,312.0,11.78,11.772,20.0]
[1672725662982,30.0,11.779,11.772,20.0]
[1672725663201,312.0,11.78,11.772,30.0]
[1672725664050,312.0,11.78,11.771,50.0]
[1672725664262,312.0,11.78,11.771,20.0]
[1672725665504,312.0,11.78,11.772,30.0]
[1672725665725,312.0,11.78,11.772,93.79]
[1672725665934,312.0,11.78,11.771,83.8]
[1672725666446,30.0,11.779,11.771,20.0]
[1672725666662,74.15658741,11.779,11.77,61.62563475]
[1672725667084,30.0,11.779,11.77,61.62563475]
[1672725667524,30.0,11.782,11.77,61.62563475]
[1672725667931,63.75,11.781,11.77,61.62563475]
[1672725668136,30.0,11.78,11.77,61.62563475]
[1672725668667,30.0,11.78,11.768,193.80487903]
[1672725668668,143.0286248,11.78,11.769,41.62563475]
[1672725668871,63.76,11.779,11.767,22.983]
[1672725669284,218.175682,11.778,11.767,22.983]
[1672725669506,312.0,11.771,11.767,22.983]
[1672725669721,312.0,11.771,11.764,114.0912]
[1672725669922,82.91658741,11.77,11.759,41.62563475]
[1672725670122,82.91658741,11.77,11.756,41.62563475]
[1672725670123,63.81,11.769,11.756,41.62563475]
[1672725670333,30.0,11.768,11.755,30.0]
[1672725670548,96.54069235,11.768,11.758,41.62563475]
[1672725671082,66.54069235,11.767,11.758,41.62563475]
[1672725671296,66.54069235,11.767,11.755,30.0]
[1672725671499,30.0,11.766,11.755,30.0]
[1672725671710,30.0,11.766,11.754,63.89]
[1672725671913,30.0,11.766,11.753,217.62463475]
[1672725672338,30.0,11.766,11.755,41.62563475]
[1672725672568,30.0,11.766,11.754,71.62563475]
[1672725672756,30.0,11.766,11.753,175.999]
[1672725672972,30.0,11.766,11.754,41.62563475]
[1672725673193,30.0,11.766,11.753,175.999]
[1672725674057,30.0,11.766,11.754,30.0]
[1672725674249,93.82,11.768,11.754,30.0]
[1672725674453,121.28783789,11.771,11.755,54.42286577]
[1672725674666,63.78,11.775,11.76,5.9]
[1672725674879,93.76,11.778,11.761,83.85]
[1672725675091,30.0,11.778,11.761,83.85]
[1672725675313,30.0,11.778,11.762,30.0]
[1672725675519,30.0,11.778,11.763,63.84]
[1672725675720,88.0729,11.779,11.763,63.84]
[1672725675934,24.3129,11.779,11.763,63.84]
[1672725676460,54.3129,11.779,11.764,30.0]
[1672725676787,54.3129,11.779,11.765,63.83]
[1672725676989,30.0,11.778,11.766,30.0]
[1672725677320,66.54069235,11.779,11.766,30.0]
[1672725677516,312.0,11.776,11.766,30.0]
[1672725677715,312.0,11.776,11.767,63.82]
[1672725677921,312.0,11.776,11.768,30.0]
[1672725678345,312.0,11.776,11.767,63.82]
[1672725678555,312.0,11.776,11.766,30.0]
[1672725678772,312.0,11.776,11.767,63.82]
[1672725679098,312.0,11.776,11.766,30.0]
[1672725679621,312.0,11.776,11.767,63.82]
[1672725680022,312.0,11.776,11.766,30.0]
[1672725681406,312.0,11.776,11.765,63.83]
[1672725681599,312.0,11.776,11.764,93.84]
[1672725681807,312.0,11.776,11.764,90.34]
[1672725682013,30.0,11.775,11.764,90.34]
[1672725682246,312.0,11.776,11.764,90.34]
[1672725683707,312.0,11.776,11.77,5.9]
[1672725683922,312.0,11.776,11.771,20.0]
[1672725684135,312.0,11.776,11.771,83.8]
[1672725684347,312.0,11.776,11.772,30.0]
[1672725684968,312.0,11.776,11.771,20.0]
[1672725688130,30.0,11.781,11.771,20.0]
[1672725688546,30.0,11.781,11.769,50.0]
[1672725689085,30.0,11.779,11.769,50.0]
[1672725689298,30.0,11.781,11.769,50.0]
[1672725689910,63.75,11.78,11.769,50.0]
[1672725690132,63.75,11.78,11.769,20.0]
[1672725690348,30.0,11.781,11.769,20.0]
[1672725690745,30.0,11.781,11.766,30.0]
[1672725690962,312.0,11.776,11.766,30.0]
[1672725691283,30.0,11.775,11.763,145.9517]
[1672725691487,312.0,11.776,11.763,145.9517]
[1672725692967,30.0,11.775,11.763,145.9517]
[1672725693497,312.0,11.776,11.763,145.9517]
[1672725693908,30.0,11.775,11.763,145.9517]
[1672725694535,312.0,11.776,11.763,145.9517]
[1672725695825,312.0,11.776,11.764,90.34]
[1672725696972,312.0,11.776,11.764,26.5]
[1672725698130,30.0,11.775,11.763,209.7917]
[1672725698353,30.0,11.775,11.763,115.9517]
[1672725698780,93.78,11.775,11.763,115.9517]
[1672725699718,12.79723102,11.774,11.763,115.9517]
[1672725699925,30.0,11.772,11.763,115.9517]
[1672725700135,30.0,11.772,11.762,46.8022]
[1672725700750,30.0,11.772,11.758,30.0]
[1672725701076,30.0,11.77,11.757,30.0]
[1672725701281,63.81,11.769,11.754,63.89]
[1672725701602,30.0,11.768,11.755,30.0]
[1672725702242,30.0,11.768,11.754,63.89]
[1672725702556,30.0,11.764,11.754,30.0]
[1672725702977,30.0,11.764,11.753,71.62563475]
[1672725703378,30.0,11.764,11.754,30.0]
[1672725703593,30.0,11.764,11.753,41.62563475]
[1672725703800,30.0,11.764,11.754,30.0]
[1672725704134,312.0,11.765,11.754,30.0]
[1672725704325,312.0,11.765,11.754,93.89]
[1672725706013,312.0,11.765,11.754,30.0]
[1672725706551,63.77,11.776,11.76,5.87]
[1672725706764,47.3997,11.776,11.761,83.85]
[1672725706977,30.0,11.775,11.762,30.0]
[1672725707174,30.0,11.775,11.763,63.84]
[1672725707387,93.78,11.775,11.762,110.4818]
[1672725707600,93.78,11.775,11.763,20.0]
[1672725707801,156.36947443,11.775,11.763,20.0]
[1672725708011,143.57224341,11.775,11.763,20.0]
[1672725708652,156.36947443,11.775,11.763,20.0]
[1672725709282,63.78,11.775,11.764,30.0]
[1672725709485,312.0,11.77,11.764,30.0]
[1672725710749,115.887,11.776,11.764,30.0]
[1672725711068,143.1291,11.778,11.764,30.0]
[1672725711069,88.3776,11.778,11.764,27.5]
[1672725711280,172.2256,11.78,11.766,30.0]
[1672725711481,63.76,11.778,11.766,30.0]
[1672725713159,30.0,11.777,11.764,207.5682]
[1672725713570,63.76,11.778,11.764,207.5682]
[1672725713783,312.0,11.775,11.764,207.5682]
[1672725714011,312.0,11.775,11.77,5.88]
[1672725714959,312.0,11.775,11.764,207.5682]
[1672725717683,46.7053,11.779,11.77,5.86]
[1672725717895,63.73,11.784,11.772,30.0]
[1672725718100,23.1421,11.785,11.773,83.79]